[Event "FIDE Grand Swiss 2023"]
[Site "Villa Marina, Douglas, Isle of Man, Isle Of Man"]
[Date "2023.10.26"]
[Round "2.57"]
[White "Yakubboev, Nodirbek"]
[Black "Kolbus, Dietmar"]
[Result "1-0"]
[TimeControl "40/90 + 30 + 30s/move"]
[WhiteFideId "14203987"]
[BlackFideId "4610628"]
[WhiteElo "2616"]
[BlackElo "2225"]

1. c4 {[%clk 01:39:01]} {[%emt 00:01:58]} c5 {[%clk 01:40:36]} {[%emt
00:00:24]} 2. g3 {[%clk 01:36:37]} {[%emt 00:02:54]} g6 {[%clk 01:39:31]}
{[%emt 00:01:35]} 3. Bg2 {[%clk 01:36:58]} {[%emt 00:00:10]} Bg7 {[%clk
01:39:54]} {[%emt 00:00:06]} 4. Nc3 {[%clk 01:37:16]} {[%emt 00:00:13]} Nc6
{[%clk 01:40:03]} {[%emt 00:00:21]} 5. d3 {[%clk 01:36:02]} {[%emt 00:01:43]}
Nf6 {[%clk 01:32:43]} {[%emt 00:07:50]} 6. e4 {[%clk 01:29:31]} {[%emt
00:07:00]} d6 {[%clk 01:31:44]} {[%emt 00:01:30]} 7. Nge2 {[%clk 01:29:32]}
{[%emt 00:00:29]} Nd7 {[%clk 01:18:39]} {[%emt 00:13:34]} 8. O-O {[%clk
01:24:47]} {[%emt 00:05:16]} Nf8 {[%clk 01:12:55]} {[%emt 00:06:15]} 9. h3
{[%clk 01:20:50]} {[%emt 00:04:27]} Ne6 {[%clk 01:13:10]} {[%emt 00:00:15]} 10.
f4 {[%clk 01:21:15]} {[%emt 00:00:06]} Ned4 {[%clk 01:13:27]} {[%emt 00:00:12]}
11. Nxd4 {[%clk 01:19:11]} {[%emt 00:02:35]} cxd4 {[%clk 01:08:17]} {[%emt
00:05:40]} 12. Nb1 {[%clk 01:15:36]} {[%emt 00:04:05]} e6 {[%clk 00:50:57]}
{[%emt 00:17:49]} 13. Nd2 {[%clk 01:13:58]} {[%emt 00:02:09]} O-O {[%clk
00:51:05]} {[%emt 00:00:21]} 14. Nf3 {[%clk 01:09:40]} {[%emt 00:04:48]} Ne7
{[%clk 00:46:33]} {[%emt 00:05:02]} 15. g4 {[%clk 01:06:16]} {[%emt 00:03:54]}
f5 {[%clk 00:45:47]} {[%emt 00:01:17]} 16. Qe2 {[%clk 00:53:46]} {[%emt
00:13:00]} fxe4 {[%clk 00:38:57]} {[%emt 00:07:20]} 17. Qxe4 {[%clk 00:53:03]}
{[%emt 00:01:13]} d5 {[%clk 00:35:13]} {[%emt 00:04:14]} 18. cxd5 {[%clk
00:38:36]} {[%emt 00:14:57]} exd5 {[%clk 00:35:13]} {[%emt 00:00:29]} 19. Qe1
{[%clk 00:37:21]} {[%emt 00:01:44]} Nc6 {[%clk 00:35:21]} {[%emt 00:00:23]} 20.
Bd2 {[%clk 00:37:45]} {[%emt 00:00:06]} Re8 {[%clk 00:34:18]} {[%emt 00:01:33]}
21. Qd1 {[%clk 00:36:29]} {[%emt 00:01:47]} Qd6 {[%clk 00:27:27]} {[%emt
00:07:20]} 22. Qb3 {[%clk 00:36:00]} {[%emt 00:00:59]} a5 {[%clk 00:22:07]}
{[%emt 00:05:50]} 23. Rae1 {[%clk 00:31:07]} {[%emt 00:05:22]} Bd7 {[%clk
00:19:14]} {[%emt 00:03:25]} 24. Ng5 {[%clk 00:28:25]} {[%emt 00:03:12]} Ne7
{[%clk 00:18:35]} {[%emt 00:01:08]} 25. f5 {[%clk 00:19:02]} {[%emt 00:09:53]}
gxf5 {[%clk 00:18:51]} {[%emt 00:00:15]} 26. gxf5 {[%clk 00:17:31]} {[%emt
00:02:01]} Bf6 {[%clk 00:15:31]} {[%emt 00:03:49]} 27. Ne4 {[%clk 00:15:13]}
{[%emt 00:02:48]} Qa6 {[%clk 00:14:07]} {[%emt 00:01:52]} 28. Nxf6+ {[%clk
00:15:03]} {[%emt 00:00:43]} Qxf6 {[%clk 00:14:33]} {[%emt 00:00:03]} 29. Qxb7
{[%clk 00:15:25]} {[%emt 00:00:07]} Bc6 {[%clk 00:11:49]} {[%emt 00:03:13]} 30.
Qc7 {[%clk 00:14:56]} {[%emt 00:01:00]} Nxf5 {[%clk 00:10:45]} {[%emt
00:01:34]} 31. Rxf5 {[%clk 00:14:22]} {[%emt 00:01:04]} Rxe1+ {[%clk 00:10:59]}
{[%emt 00:00:17]} 32. Bxe1 {[%clk 00:14:48]} {[%emt 00:00:04]} Qxf5 {[%clk
00:11:12]} {[%emt 00:00:17]} 33. Qxc6 {[%clk 00:15:09]} {[%emt 00:00:09]} Rd8
{[%clk 00:09:18]} {[%emt 00:02:22]} 34. Bxa5 {[%clk 00:13:40]} {[%emt
00:02:00]} Rd7 {[%clk 00:09:43]} {[%emt 00:00:05]} 35. Qc8+ {[%clk 00:13:19]}
{[%emt 00:00:51]} Kf7 {[%clk 00:09:59]} {[%emt 00:00:14]} 36. Bb6 {[%clk
00:12:43]} {[%emt 00:01:07]} 1-0

b6 {[%clk
00:12:43]} {[%emt 00:01:07]} 1-0